Cogmind - Beta 15 --- EXPLORER MODE // 2025.08.24 @ 13:55:40 Player: Aydz Result: Self-destructed Performance ------------- Evolutions (2) 1000 Regions Visited (3) 600 Robots Destroyed (66) 330 Value Destroyed (1881) 1881 Prototype IDs (14) 280 Alien Tech Used (0) 0 Bonus (2945) 2945 TOTAL SCORE: 7036 Bonus ------- Subatomizer Sterilization 3000 Friendly Fire -55 Cogmind --------- Core Integrity 526/550 Matter 243/300 Energy 440/440 System Corruption 1% Temperature Cool (-100) Movement Walking (120) Location -8/Materials Parts ------- > --- POWER (2) -------- Improved Ion Engine Deuterium Engine > --- PROPULSION (4) --- Armored Treads Carbon-fiber Leg Carbon-fiber Leg Carbon-fiber Leg > --- UTILITY (4) ------ Cryofiber Web Improved Heat Sink Energy Filter Improved Light Armor Plating > --- WEAPON (2) ------- Advanced Beam Cannon Heavy Ion Cannon > --- INVENTORY (5) ---- Meta Core Cesium-ion Thruster Dirty Datajack (20) Flamer Flamer Peak State ------------ > --- POWER ------------ Improved Ion Engine Deuterium Engine > --- PROPULSION ------- Armored Treads Carbon-fiber Leg Carbon-fiber Leg Carbon-fiber Leg > --- UTILITY ---------- Cryofiber Web Improved Heat Sink Energy Filter Improved Light Armor Plating > --- WEAPON ----------- Advanced Beam Cannon Heavy Ion Cannon > --- INVENTORY -------- Meta Core Cesium-ion Thruster Dirty Datajack Flamer Flamer [Rating: 39] Favorites ----------- Power Ion Engine Engine Ion Engine Power Core Light Nuclear Core Propulsion Light Treads Treads Light Treads Leg Aluminum Leg Wheel Subdweller Monowheel Utility Humpback Device Improved Terrain Scanner Storage Humpback Processor Targeting Computer Protection Light Armor Plating Weapon EM Pulse Gun Energy Gun EM Pulse Gun Energy Cannon Beam Cannon Ballistic Gun Light Assault Rifle Ballistic Cannon Battle Cannon Build | -11 -10 -10 -8 ------- Run | Yrd Mat Sub Mat Slots Evolved 5 | . 1 . 4 Power 1 | . . . 1 Propulsion 2 | . . . 2 Utility 2 | . 1 . 1 Weapon . | . . . . Parts Attached 56 | 8 7 18 23 Power 5 | 1 . 1 3 Engine 4 | 1 . 1 2 Core 1 | . . . 1 Reactor . | . . . . Propulsion 15 | 2 2 5 6 Treads 7 | . . 4 3 Leg 7 | 2 2 . 3 Wheel 1 | . . 1 . Hover . | . . . . Flight . | . . . . Utility 14 | 3 1 5 5 Device 6 | 1 . 2 3 Storage 3 | 1 . 1 1 Processor 2 | 1 . 1 . Hackware . | . . . . Protection 3 | . 1 1 1 Artifact . | . . . . Weapon 22 | 2 4 7 9 Energy Gun 7 | . 2 2 3 Energy Cannon 6 | . 2 2 2 Ballistic Gun 5 | 2 . . 3 Ballistic Cannon 4 | . . 3 1 Launcher . | . . . . Special Weapon . | . . . . Impact Weapon . | . . . . Slashing Weapon . | . . . . Piercing Weapon . | . . . . Special Melee Weapon . | . . . . Unidentified Prototypes 3 | . . . 3 Parts Lost 8 | . 2 6 . Power 2 | . . 2 . Propulsion . | . . . . Utility 3 | . 1 2 . Weapon 3 | . 1 2 . Highest Loss Streak 2 | . 1 2 . To Critical Strikes 1 | . . 1 . Average Backups 8 | 2 8 9 5 Power . | . . . . Propulsion 1 | 1 2 1 . Utility 1 | 1 2 1 . Weapon 4 | . 3 4 2 Tool/Special . | . . . . Unused Backups 12 | . 3 1 8 Power 1 | . 1 . . Propulsion 2 | . . . 2 Utility 2 | . 1 . 1 Weapon 5 | . 1 1 3 Tool/Special 2 | . . . 2 Average Slot Usage (%) 86 | . 91 86 81 Engine 11 | . 12 11 8 Treads 19 | . . 22 24 Leg 5 | . 25 2 7 Device 7 | . . 8 16 Storage 11 | . 12 12 . Processor 2 | . 12 1 . Protection 2 | . 4 2 . Energy Gun 12 | . 12 13 5 Energy Cannon 3 | . 6 3 5 Ballistic Cannon 6 | . . 8 2 Peak Build Rating 39 | 7 9 32 39 Average Rating 21 | 6 8 22 26 On Entrance 11 | . 7 8 32 Naked Turns . | . . . . Heaviest Build 214 | 17 22 214 53 Greatest Support 80 | 20 20 40 80 Greatest Overweight (x) 10 | 1 1 10 1 Average Overweight (x) 2 | . . 4 . Largest Inventory Capacity 35 | 10 10 35 35 Average Capacity 28 | 8 10 32 5 Most Carried 32 | 6 10 32 17 Average Carried 16 | 2 9 17 5 Final Capacity 35 | 10 10 35 5 Final Carried 32 | 6 9 32 5 Class Distribution -------------------- 75% | Hauler-Mutant 24% | Hacker-Mutant Dominant Class ---------------- Hacker-Mutant | -10/Materials Hauler-Mutant | -10/Subcaves Hacker-Mutant | -8/Materials Resources | -11 -10 -10 -8 ----------- Run | Yrd Mat Sub Mat Matter Collected 1699 | 306 137 810 446 Remotely . | . . . . Salvage Created 2844 | 219 736 1067 822 Parts 158 | 14 40 51 53 Haulers Intercepted 3 | . 2 . 1 Recyclers Shooed 2 | 1 . . 1 Parts Field Recycled . | . . . . Retrieved Matter . | . . . . Parts Self-Destructed . | . . . . Prevented . | . . . . Kills | -11 -10 -10 -8 ------- Run | Yrd Mat Sub Mat Combat Hostiles Destroyed 47 | . 12 21 14 Guns 24 | . 11 5 8 Cannons 19 | . . 13 6 AOE 2 | . 1 1 . Classes Destroyed 10 | 2 3 4 1 Tunneler 5 | 5 . . . Hauler 3 | . 2 . 1 Recycler 4 | 1 . . 3 Turret 2 | . . 2 . Watcher 5 | . 3 . 2 Swarmer 9 | . . 4 5 Grunt 17 | . 12 . 5 Sentry 4 | . . . 4 Artisan 3 | . . 3 . Subdweller 17 | . . 17 . Best Kill Streak 7 | 4 6 6 7 Combat Bots Only 6 | . 3 4 6 Max Kills in Single Turn 1 | 1 1 1 1 Gunslinging . | . . . . Exploded 1 | . 1 1 . Melee . | . . . . Uniques/NPCs Destroyed . | . . . . Combat | -11 -10 -10 -8 -------- Run | Yrd Mat Sub Mat Hostile Shots Fired 238 | . 49 152 37 Missed 86 | . 14 58 14 Hits 152 | . 35 94 23 Projectile 152 | . 35 94 23 AOE 3 | . . 3 . Critical Strikes 3 | . . 1 2 Damage Taken 1776 | . 397 1205 174 Core 238 | . 81 133 24 Absorbed by Shields . | . . . . Ignored by Resistances 1055 | . 240 702 113 Regen/Repaired (Parts) 43 | . 34 . 9 Core Remaining (%) 57 | 100 . 14 . Volleys Fired 246 | 13 45 146 42 Largest 2 | 2 2 2 2 Hottest 160 | 40 80 160 133 Shots Fired 460 | 26 88 262 84 Gun 270 | 26 88 100 56 Cannon 190 | . . 162 28 Launcher . | . . . . Special . | . . . . Kinetic 224 | 26 52 96 50 Thermal 100 | . . 66 34 Explosive . | . . . . Electromagnetic 136 | . 36 100 . Robot Hit Streak 61 | 22 19 61 29 Robot Miss Streak 2 | . 2 1 1 Penetration Max . | . . . . Secondary Targets 3 | . 3 . . Max Gunslinging Chain 1 | . 1 . . Shots Hit Robots 320 | 22 74 158 66 Core Hits 130 | 11 37 50 32 Critical Kills 1 | . 1 . . Critical Parts Destroyed 2 | . . . 2 Critical Strikes 9 | . 3 2 4 Burn 1 | . . . 1 Destroy 3 | . 1 . 2 Blast 2 | . . 1 1 Corrupt 3 | . 2 1 . Melee Attacks . | . . . . Impact . | . . . . Slashing . | . . . . Piercing . | . . . . Sneak Attacks . | . . . . Combat Hostiles . | . . . . Follow-up Attacks . | . . . . Damage Inflicted 4931 | 171 791 2605 1364 Guns 2847 | 171 755 962 959 Cannons 1936 | . . 1531 405 Explosions 148 | . 36 112 . Melee . | . . . . Ramming . | . . . . Kinetic 1922 | 171 369 579 803 Thermal 1661 | . 36 1064 561 Explosive . | . . . . Electromagnetic 1348 | . 386 962 . Impact . | . . . . Slashing . | . . . . Piercing . | . . . . Highest Corruption 1 | . . . 1 Average Corruption 1 | . . . 1 Corruption Purged . | . . . . Corruption Blocked . | . . . . Overload Shots . | . . . . Overflow Damage 57 | . . 57 . Projectiles 25 | . . 25 . Explosions 32 | . . 32 . Melee . | . . . . Knockbacks 9 | . . 5 4 Impact . | . . . . Kinetic 8 | . . 5 3 Secondary 1 | . . . 1 Self-Inflicted Damage 39 | . . 39 . Shots 1 | . . 1 . Rammed . | . . . . Targets Rammed . | . . . . Kicked . | . . . . Crushed . | . . . . Highest Temperature 316 | . 132 255 316 Average Temperature 45 | . 31 74 37 Received Heat Transfer 858 | . 264 477 117 Siege Activations . | . . . . Martial Activations . | . . . . Shielding Activations . | . . . . Robots Disrupted . | . . . . Combat Hostiles . | . . . . Robots Corrupted 2 | . . 2 . Combat Hostiles 2 | . . 2 . Parts Fried 15 | . 2 13 . Impact Corruptions . | . . . . Robots Melted . | . . . . Combat Hostiles . | . . . . Parts Melted 5 | . . 3 2 Heat Transferred 2666 | . . 1519 1147 Parts Sabotaged . | . . . . Parts Stolen . | . . . . Parts Stripped . | . . . . Power Chain Reactions 3 | . 1 2 . Alert | -11 -10 -10 -8 ------- Run | Yrd Mat Sub Mat Maximum Alert Level 1 | . . . 1 Low Security (%) 99 | 100 100 . 99 Level 1 . | . . . . Level 2 . | . . . . Level 3 . | . . . . Level 4 . | . . . . Level 5 . | . . . . High Security . | . . . . Max Security . | . . . . Sterilizations 1 | . . . 1 Peak Influence 212 | 10 67 . 212 Initial . | . . . . Average 29 | 3 6 . 84 Influence Increases 993 | 30 382 165 416 Destroy 0b10 Robot/C 640 | . 240 120 280 Destroy 0b10 Robot/NC 85 | 30 25 . 30 Destroy Leader 136 | . 50 . 86 Successful Hack 59 | . 49 . 10 Disable Machine 4 | . . . 4 Destroy Structure 9 | . 3 . 6 Lose Combat Pursuer 60 | . 15 45 . Influence Decreases 993 | 30 382 165 416 Time Decay 983 | 30 372 165 416 Lost Part 10 | . 10 . . Squads Dispatched 5 | . . . 5 Investigation . | . . . . Extermination . | . . . . Reinforcement . | . . . . Assault 1 | . . . 1 Garrison 4 | . . . 4 Intercept . | . . . . Searches Triggered . | . . . . Construction Impeded . | . . . . Haulers Reinforced . | . . . . Active Scanning Responses . | . . . . Cargo Convoy Interrupts . | . . . . Stealth | -11 -10 -10 -8 --------- Run | Yrd Mat Sub Mat Distress Signals 2 | . 1 . 1 Communications Jammed . | . . . . Distress Signals . | . . . . Times Spotted 65 | . 16 27 22 Peak Tracking Total 8 | . 4 6 8 Tactical Retreats 4 | . 1 3 . Traps | -11 -10 -10 -8 ------- Run | Yrd Mat Sub Mat Traps Triggered 4 | . 2 1 1 Indirectly . | . . . . Trap Hack Attempts . | . . . . Triggered . | . . . . Disarmed . | . . . . Reprogrammed . | . . . . Reused . | . . . . Traps Extracted . | . . . . Installed . | . . . . Triggered . | . . . . Machines | -11 -10 -10 -8 ---------- Run | Yrd Mat Sub Mat Machines Disabled 4 | . . 3 1 Max in Single Turn 1 | . . 1 1 Garrison Access 1 | . . . 1 Machines Repaired . | . . . . Machines Dismantled . | . . . . Machines Sabotaged . | . . . . Overloaded Fab Kills . | . . . . Hacking | -11 -10 -10 -8 --------- Run | Yrd Mat Sub Mat Machines Accessed 21 | . 10 4 7 Terminals 12 | . 7 . 5 Fabricators . | . . . . Repair Stations 2 | . 1 . 1 Recycling Units 3 | . 2 . 1 Scanalyzers . | . . . . Garrison Access . | . . . . Total Hacks 65 | . 30 7 28 Successful 56 | . 26 7 23 Failed 9 | . 4 . 5 Catastrophic . | . . . . Database Lockouts . | . . . . Manual 45 | . 22 . 23 Terminals 48 | . 24 . 24 Fabricators . | . . . . Repair Stations 4 | . 2 . 2 Recycling Units 6 | . 4 . 2 Scanalyzers . | . . . . Garrison Access . | . . . . Terminal Hacks 23 | . 8 7 8 Record 4 | . . 4 . Robot Analysis 7 | . 3 . 4 Open Door 1 | . . 1 . Branch Access Points 1 | . 1 . . Terminal Index 1 | . 1 . . Alert Level 1 | . . . 1 Locate Traps 1 | . 1 . . Dispatch Records 1 | . . . 1 Recall Assault 1 | . . . 1 Hauler Manifests 2 | . 1 . 1 Registered Components 1 | . 1 . . Proto ID Catalog 1 | . . 1 . Release Object 1 | . . 1 . Fabricator Hacks . | . . . . Repair Station Hacks 4 | . 2 . 2 Scan Component 2 | . 1 . 1 Repair 2 | . 1 . 1 Recycling Unit Hacks 2 | . 1 . 1 Retrieve Components 2 | . 1 . 1 Scanalyzer . | . . . . Garrison Access Hacks . | . . . . Unauthorized Hacks 27 | . 15 . 12 Terminals 23 | . 12 . 11 Botnet 12 | . 7 . 5 Operators 1 | . . . 1 Skim 10 | . 5 . 5 Fabricators . | . . . . Repair Stations . | . . . . Recycling Units 4 | . 3 . 1 Reject 3 | . 2 . 1 Recyclers 1 | . 1 . . Scanalyzers . | . . . . Garrison Access . | . . . . Data Cores Recovered . | . . . . Used . | . . . . Hacking Detections 14 | . 8 . 6 Full Trace Events . | . . . . Feedback Events . | . . . . Feedback Blocked . | . . . . Robot Schematics Acquired . | . . . . Robots Built . | . . . . Authchips . | . . . . Time . | . . . . Total Robot Build Rating . | . . . . Part Schematics Acquired . | . . . . Parts Built . | . . . . Authchips . | . . . . Time . | . . . . Total Part Build Rating . | . . . . Parts Repaired 2 | . 1 . 1 Time 52 | . 26 . 26 Parts Recycled . | . . . . Recycled Matter . | . . . . Retrieved Matter . | . . . . Retrieved Components 18 | . 10 . 8 Parts Scanalyzed . | . . . . Part Schematics Acquired . | . . . . Parts Damaged . | . . . . Bothacking | -11 -10 -10 -8 ------------ Run | Yrd Mat Sub Mat Used RIF Installer . | . . . . Robots Hacked . | . . . . Non-combat . | . . . . Combat . | . . . . Robot Hacks Applied . | . . . . Relay Couplers Released 1 | . . . 1 Machine Destruction 1 | . . . 1 Fabnet Peak Effective % . | . . . . Robots Rewired . | . . . . Allies Hacked . | . . . . Hacks Repelled . | . . . . Allies | -11 -10 -10 -8 -------- Run | Yrd Mat Sub Mat Total Allies . | . . . . Largest Group . | . . . . Highest-Rated Group . | . . . . Highest-Rated Ally . | . . . . Total Orders . | . . . . Ally Attacks . | . . . . Total Damage . | . . . . Kills . | . . . . Allies Corrupted . | . . . . Allies Melted . | . . . . Intel | -11 -10 -10 -8 ------- Run | Yrd Mat Sub Mat Active Infowar (turns) 8798 | 11 . 8170 617 Sensors 11 | 11 . . . Terrain 8047 | . . 8047 . Structural 740 | . . 123 617 Robot Analysis Total 7 | . 3 . 4 Derelict Logs Recovered 2 | . . 2 . Drone Launches . | . . . . Drone Recoveries . | . . . . Exploration | -11 -10 -10 -8 ------------- Run | Yrd Mat Sub Mat Turns Passed 14374 | 115 1644 11878 737 Spaces Moved 3650 | 56 952 2289 353 Core 7 | 7 . . . Treads 1893 | . . 1693 200 Legs 1657 | 49 952 503 153 Wheels 93 | . . 93 . Hover . | . . . . Flight . | . . . . Fastest Speed 50 | 50 120 190 120 Average Speed 365 | 113 144 497 143 Slowest Speed 660 | 120 190 660 190 Overloaded Moves . | . . . . Propulsion Burnouts . | . . . . Robots Hopped . | . . . . Potential Cave-ins . | . . . . Cave-ins Triggered . | . . . . Exploration Rate (%) 56 | 4 100 98 25 Regions Visited 3 Branch Regions 1 Pre-discovered Areas 3 | . 1 2 . Known Exits Taken 3 | 1 1 1 . Unknown Exits Taken . | . . . . Scrap Searched 10 | . . 10 . Spaces Dug . | . . . . Terrain Destroyed 15 | . 3 9 3 Melee . | . . . . Projectile 5 | . . 2 3 AOE 10 | . 3 7 . Terrain Rammed . | . . . . Walls Destroyed . | . . . . Machines Disabled . | . . . . Actions | -11 -10 -10 -8 --------- Run | Yrd Mat Sub Mat Total 4253 | 82 1143 2524 504 Wait 193 | . 119 24 50 Move 3647 | 55 951 2288 353 Hop . | . . . . Pick Up 34 | 6 11 15 2 Fast Attach 34 | 7 3 5 19 Attach 12 | . 3 6 3 Detach 5 | . . 5 . Swap 34 | 1 3 24 6 Drop 47 | . 8 11 28 Fire 246 | 13 45 146 42 Melee . | . . . . Ram . | . . . . Kick . | . . . . Crush . | . . . . Escape Stasis . | . . . . Rewire . | . . . . Trap . | . . . . Miscellaneous 1 | . . . 1 Route ------- -11/Scrapyard -10/Materials (discovered 5 exits: *Mat x3 / *Min / *Sub) -10/Subcaves (discovered 3 exits: *Mat x2 / *Rec) -8/Materials (discovered 2 exits: Fac x2) History --------- Turn | Location | Event 7 | -11/Scrapyard | Identified exit to Materials 7 | -11/Scrapyard | Discovered exit to Materials (range 13) 116 | -11/Scrapyard | Entered Materials 116 | -10/Materials | Evolved 1 slot: Utility x1 281 | -10/Materials | Identified exit to Materials 281 | -10/Materials | Discovered exit to Materials (range 8) 299 | -10/Materials | Identified exit to Mines 308 | -10/Materials | Build established: Hacker-Mutant 634 | -10/Materials | Discovered exit to Materials (range 16) 827 | -10/Materials | Identified exit to Subcaves 827 | -10/Materials | Discovered exit to Subcaves (range 13) 1163 | -10/Materials | Learned location of 2 exits from Mines 1202 | -10/Materials | Discovered exit to Materials (range 16) 1203 | -10/Materials | Learned location of 2 exits from Materials 1234 | -10/Materials | Learned location of Subcaves (-10) 1253 | -10/Materials | Loaded intel: 19 trap records 1367 | -10/Materials | Repaired EM Pulse Gun 1760 | -10/Materials | Entered Subcaves 1761 | -10/Subcaves | Identified exit to Materials 1940 | -10/Subcaves | Learned Materials security intel 2216 | -10/Subcaves | Visited Clippyterm 2221 | -10/Subcaves | Learned Factory trap positions 2221 | -10/Subcaves | Learned 40 Factory zone layouts 2531 | -10/Subcaves | A swath of the cavern ceiling suddenly collapsed 2667 | -10/Subcaves | Shifting Twisted Machinery released Battle Cannon 2672 | -10/Subcaves | Shifting Twisted Machinery released Battle Rifle 2673 | -10/Subcaves | Shifting Twisted Machinery released Sub. Monowheel 2676 | -10/Subcaves | Shifting Twisted Machinery released Sub. Power Source 2755 | -10/Subcaves | Identified exit to Recycling 2755 | -10/Subcaves | Discovered exit to Recycling (range 15) 3110 | -10/Subcaves | Build established: Hauler-Mutant 3442 | -10/Subcaves | Visited 4L-MR0's lab 3514 | -10/Subcaves | Found Meta Core 3619 | -10/Subcaves | Core integrity fell below 50% 6987 | -10/Subcaves | Found SUBCON Basin 8859 | -10/Subcaves | A swath of the cavern ceiling suddenly collapsed 10628 | -10/Subcaves | Shifting Twisted Machinery released Sub. Laser 10699 | -10/Subcaves | Learned location of Zion (-6) 10699 | -10/Subcaves | Met a Zionite searching for "candidates" 11140 | -10/Subcaves | Shifting Twisted Machinery released Spk. Treads 12380 | -10/Subcaves | Disturbed a concealed Subdweller 12751 | -10/Subcaves | Ambushed by Subdweller buried in earth 13180 | -10/Subcaves | Disturbed a concealed Subdweller 13185 | -10/Subcaves | Core integrity fell below 20% 13638 | -10/Subcaves | Entered Materials 13638 | -8/Materials | Evolved 4 slots: Power x1, Propulsion x2, Utility x1 13639 | -8/Materials | Identified exit to Factory 13639 | -8/Materials | Released subatomizers from SUBCON Basin 13669 | -8/Materials | Garrison activated, responded to threat 13791 | -8/Materials | Garrison activated, responded to threat 13946 | -8/Materials | Build established: Hacker-Mutant 14220 | -8/Materials | Repaired Structural Scanner 14255 | -8/Materials | Sterilization system engaged 14255 | -8/Materials | Non-combat units ordered to evacuate 14355 | -8/Materials | Combat units ordered to evacuate 14375 | -8/Materials | Self-destructed Last Messages --------------- 14316_ System corrupted (+1). 14345_ Connecting with Recycling Unit... >>Trojan(Reject) Trojan loaded successfully. Testing... Ejection routine running. >>Retrieve(Components) Retrieving 8 components... Wheel Sml. Matter Pod Heat Sink Beam Rifle Lgt. Ion Engine Imp. Ion Engine Lgt. Deuterium Engine Sml. Storage Unit 14355_ ALERT: All combat units evacuate. 14360_ ALERT: Machine network offline. 14365_ ALERT: Performing unscheduled system reset. 14375_ Subatomizers consume a piece of Processing Tank. Map ----- +----------------------------------------------------+ | T ##?????????????????????????????????????? | | ###### ############???????????????????????????? | | #### #############???????????????????????????? | | #### #####!![[]]##???????????????????????????? | | #### ##?##! [[ ]##???????????????????????????? | | #### ##### ##???????????????????????????? | | ! #### ###### #########?????????????????????? | | ### ##### # #?????????????????????? | | ###! * # """"" #?????????????????????? | | ##" [ """"" #?????????????????????? | | ###### ! ##### # """"" #?????????????????????? | | ################ ## #?????????????????????? | | ??## """"" # ## !!""#?????????????????????? | | ??## """"" + ## [* Y"#?????????????????????? | | ??## """"" # ## *!""#?????????????????????? | | ??## " " # ## =* #?????????????????????? | | ??## "R" # ##########?????????????????????? | | ??## """ # ############???????????????????? | | #### # ##] #???????????????????? | | ################ ## #???????????????????? | | ########### &## " """ #???????????????????? | | """ # ##### # "" " #???????????????????? | | """ # " "" #???????????????????? | | """ # """ " #???????????????????? | | """ # ##### # " """ #???????????????????? | | """ ## #######+### @ #???????????????????? | | =%[ ## ## ###########???????????????????? | | [ #T ## ######## ???????????????????? | | ####### ## ]] ##????????????????????????????? | | ! # ## ] ] ##????????????????????????????? | | # ## ] ] ##????????????????????????????? | | # ## === ##????????????????????????????? | | + ## ##????????????????????????????? | | # ## ##????????????????????????????? | | # ## * ##????????????????????????????? | | # ############????????????????????????????? | | # ############????????????????????????????? | | ## # ##??????????????????????????????????????? | | # *##??????????????????????????????????????? | | #!%##??????????????????????????????????????? | | # ##### ##??????????????????????????????????????? | | ####### ##??????????????????????????????????????? | | ##??????????????????????????????????????? | | #########???????????????????????????????? | | #########???????????????????????????????? | | # ##???????????????????????????????? | | # """ ##???????????????????????????????? | | # " " ##???????????????????????????????? | | % T" + ##???????????????????????????????? | | " # ##???????????????????????????????? | +----------------------------------------------------+ Best States ------------- Heat Dissipation 59 Energy Generation 21 Energy Capacity 440 Matter Stores 300 Matter Capacity 300 Sight Range 16 Robot Scan Range 14 Terrain Scan Range 16 Terrain Scan Density 10 Base Temperature (-) 100 Armor Coverage 150 Resistance: KI 35 Resistance: TH 35 Resistance: EX 35 Resistance: EM 35 Resistance: I 35 Resistance: S 35 Resistance: P 35 Evasion (%) 55 Targeting Accuracy 5 Recoil Reduction 4 Energy Filtering 30 Offensive Hacking 20 Item Schematics ----------------- None Robot Schematics ------------------ None Fabricated ------------ Nothing Repaired ---------- EM Pulse Gun | 24% | -10/Materials Structural Scanner | 55% | -8/Materials Alien Tech Used ----------------- None Achievements -------------- None Challenges ------------ None Game ------ Seed GrapheneStorageTendrils Manual? 0 Play Time 01:01:01 Cumulative 56.1 hours Start 2025.08.24 @ 12:54:09 End 2025.08.24 @ 13:55:40 Sessions 1 Manual Loads 0 Difficulty Explorer Special Mode None Game No. 11 Rogue 0 Adventurer 0 Explorer 11 Win Type - Total 1 Types 0/0/1/0/0/0/0/0/0/0 Lore% 23 Gallery% 28 Achievement% 34 Wizard Run 0 Options --------- Layout 0 ASCII 0 Keyboard 0 Movement Mouse Keybinds 0 Fullscreen 2 Font 24/Terminus Map View 76x50 Zoom Use 0% Tactical HUD 1 Map Filters NONE Filters NONE Steam 1 RUN: 8dd21689-77be-4293-947d-8b971600fd09